bitfinex-derivatives/quotes_ETHF0:USTF0_20260214
["timestamp","ask_amount","ask_price","bid_price","bid_amount"]
[1771073945672,1.05527211,2071.7,2070.6,1.1507292]
[1771073945972,1.05527211,2071.7,2070.8,1.1507292]
[1771073946472,1.05527211,2071.7,2070.9,1.1507292]
[1771073946872,1.05527211,2071.7,2071.0,1.1507292]
[1771073947674,1.05527211,2071.7,2071.3,1.1507292]
[1771073947874,0.00442112,2071.7,2071.3,1.15452766]
[1771073948277,0.00442112,2071.7,2071.5,1.1507292]
[1771073948571,1.05282462,2072.1,2071.5,1.1507292]
[1771073948770,1.05282462,2072.1,2071.6,1.1507292]
[1771073948965,1.05282462,2072.3,2071.5,0.97090913]
[1771073949171,0.76609799,2071.9,2070.9,1.1507292]
[1771073950277,0.77192791,2071.9,2070.9,1.15637819]
[1771073952576,0.77168701,2071.2,2070.4,1.1507292]
[1771073953370,0.77800161,2071.6,2070.4,1.1507292]
[1771073953776,0.77800161,2071.6,2070.4,1.15537338]
[1771073954472,2.23705278,2071.7,2070.4,1.15537338]
[1771073954473,0.76672471,2071.4,2070.4,1.15537338]
[1771073957887,0.78298936,2070.8,2070.0,1.1507292]
[1771073958782,0.78298936,2070.8,2070.0,1.15567935]
[1771073959088,0.78298936,2070.8,2069.8,1.1507292]
[1771073959881,0.78353849,2070.6,2069.8,1.1507292]
[1771073960183,1.17327149,2070.6,2069.4,1.1507292]
[1771073960386,40.8,2070.7,2069.4,1.1507292]
[1771073960685,3.41032427,2070.9,2069.1,9.95084]
[1771073960686,1.17327149,2070.9,2069.6,1.1507292]
[1771073961080,1.17327149,2070.9,2069.6,1.15693146]
[1771073962086,1.17327149,2070.9,2069.8,1.1507292]
[1771073963680,1.17327149,2071.1,2070.0,1.1507292]
[1771073963991,40.8,2071.2,2069.6,5.95238226]
[1771073963992,1.17327149,2070.8,2069.7,1.1507292]
[1771073965193,1.17327149,2070.8,2069.9,1.1507292]
[1771073966988,1.17327149,2071.0,2069.9,1.1507292]
[1771073967192,1.17327149,2070.8,2069.9,1.1507292]
[1771073971098,40.8,2071.2,2070.1,1.28084205]
[1771073971405,1.25831007,2071.6,2070.5,1.28084205]
[1771073971698,1.25831007,2071.5,2070.5,1.28084205]
[1771073974499,1.25831007,2071.4,2070.3,1.28084205]
[1771073974696,2.23705278,2071.5,2070.3,1.28084205]
[1771073974697,1.25831007,2071.2,2070.3,1.28084205]
[1771073979006,1.25831007,2071.0,2070.3,1.28084205]
[1771073982401,1.25831007,2071.0,2070.3,1.52248205]
[1771073986807,1.28445062,2071.2,2070.3,1.52248205]
[1771073987003,40.8,2071.4,2070.3,1.52248205]
[1771073987004,42.08445062,2071.4,2070.3,1.52248205]
[1771073987210,1.28445062,2071.7,2070.9,1.26032831]
[1771073987902,1.28445062,2071.7,2071.1,1.26032831]
[1771073988103,1.29028054,2071.9,2071.1,1.26492554]
[1771073988303,1.28445062,2072.1,2071.5,1.26032831]
[1771073988803,1.28445062,2072.6,2071.5,1.26032831]
[1771073989008,1.28445062,2072.3,2071.4,0.24151]
[1771073989307,1.28815123,2072.3,2071.4,1.26032831]
[1771073990905,1.28815123,2072.3,2071.2,1.26032831]
[1771073993716,1.28445062,2071.9,2070.8,1.50190831]
[1771073994007,1.28445062,2071.7,2070.8,1.50190831]
[1771073994405,1.28445062,2071.6,2070.8,1.50190831]
[1771073994907,1.28445062,2071.6,2070.8,1.50609207]
[1771073996409,1.28445062,2071.6,2070.3,1.26032831]
[1771073996410,1.28445062,2071.5,2070.3,1.26032831]
[1771073997711,1.28445062,2071.5,2070.3,1.26379994]
[1771074001813,1.28445062,2071.5,2070.5,1.36192971]
[1771074002707,1.28445062,2071.5,2070.4,0.24163]
[1771074002906,1.35113128,2071.3,2070.3,0.00347163]
[1771074004413,1.35113128,2071.3,2070.3,1.60703134]
[1771074004813,1.35113128,2071.8,2070.6,1.36192971]
[1771074005011,1.35113128,2071.8,2070.8,1.36192971]
[1771074005310,1.35113128,2071.8,2070.7,1.60351971]
[1771074006315,1.35113128,2071.6,2070.7,0.24159]
[1771074006708,1.35113128,2071.4,2070.3,0.00347163]
[1771074006911,1.35113128,2071.3,2070.1,1.60358971]
[1771074007815,1.35113128,2071.3,2070.1,1.60702879]
[1771074009019,1.35113128,2071.8,2070.7,1.36192971]
[1771074009319,1.35113128,2071.8,2070.9,1.36192971]
[1771074010415,1.35113128,2071.8,2070.3,1.02431981]
[1771074011015,40.8,2071.9,2070.3,1.02431981]
[1771074011016,1.35113128,2071.6,2070.3,1.02431981]
[1771074011211,1.35113128,2071.4,2070.2,1.26630622]
[1771074017212,1.35113128,2071.7,2070.8,1.04849048]
[1771074017822,1.35113128,2071.7,2070.4,1.05201527]
[1771074018921,1.35113128,2071.5,2070.4,1.05201527]
[1771074019122,1.35113128,2071.5,2070.5,0.24162]
[1771074019827,1.35113128,2071.5,2070.5,1.29434167]
[1771074021328,1.35113128,2071.5,2070.5,1.31036536]
[1771074021625,1.35113128,2071.5,2070.5,0.24162]
[1771074022727,1.35113128,2071.5,2070.3,1.06874536]
[1771074023428,1.35113128,2071.5,2070.1,0.00343908]
[1771074023429,1.35113128,2071.3,2070.1,1.07766487]
[1771074023725,1.35113128,2071.3,2068.5,23.40156741]
[1771074023726,1.35113128,2070.9,2069.4,1.07422579]
[1771074023928,1.35113128,2070.7,2069.4,1.07422579]
[1771074024127,1.35113128,2070.5,2069.4,1.07422579]
[1771074024920,1.35558263,2070.5,2069.4,1.08009897]
[1771074026225,1.35558263,2070.5,2069.4,1.32182897]
[1771074026527,0.00445135,2070.5,2069.4,1.32182897]
[1771074027030,0.00445135,2070.5,2069.7,1.07618465]
[1771074027231,42.15113128,2071.0,2069.9,1.07526721]
[1771074027429,1.35113128,2070.9,2070.1,1.07526721]
[1771074028231,1.35640788,2070.9,2070.1,1.07526721]
[1771074029426,1.35640788,2070.9,2070.0,1.33713265]
[1771074031430,1.35640788,2070.9,2070.0,0.24167]
[1771074031631,1.35640788,2070.9,2070.0,1.36148802]
[1771074033331,1.35640788,2070.9,2070.0,0.24167]
[1771074033929,1.35640788,2070.9,2070.0,1.36158677]
[1771074034335,1.35640788,2070.9,2070.0,0.24167]
[1771074035334,1.35640788,2070.9,2070.0,1.35808833]
[1771074036234,1.35640788,2070.9,2070.0,0.24167]
[1771074037239,1.35640788,2070.9,2069.7,1.12675147]
[1771074038341,1.40250241,2070.7,2069.7,1.12675147]
[1771074040246,1.40250241,2070.7,2069.4,0.24761318]
[1771074040434,1.30695216,2070.5,2069.1,1.1407542]
[1771074040636,1.30695216,2070.5,2069.5,1.1407542]
[1771074040830,1.30695216,2070.5,2069.6,0.24172]
[1771074041036,1.30695216,2070.5,2069.7,1.1407542]
[1771074041243,1.30695216,2070.5,2069.8,0.2417]
[1771074041438,1.30695216,2070.5,2069.8,0.00461897]
[1771074041642,1.30695216,2070.5,2069.8,1.14826282]
[1771074042530,40.8,2070.8,2069.8,1.14826282]
[1771074042735,1.30695216,2070.7,2069.8,1.14826282]
[1771074044742,1.30695216,2070.7,2070.0,1.00266903]
[1771074044939,0.0052766,2070.9,2070.2,1.00266903]
[1771074045238,0.0052766,2070.9,2070.1,1.24656948]
[1771074045239,1.31222876,2070.9,2070.1,1.24656948]
[1771074047842,0.0052766,2070.9,2070.1,1.24656948]
[1771074048641,1.31222876,2070.9,2070.1,1.24656948]
[1771074050840,0.0052766,2070.9,2070.1,1.24656948]
[1771074051041,1.30695216,2071.3,2070.3,0.24164]
[1771074051242,1.30695216,2071.3,2070.4,1.02643307]
[1771074051440,1.30695216,2072.0,2070.4,1.02643307]
[1771074051943,1.30695216,2071.8,2070.4,1.02643307]
[1771074052144,1.30695216,2071.8,2070.8,1.04594517]
[1771074052334,1.30695216,2071.8,2070.7,0.24159]
[1771074052335,1.30695216,2071.8,2071.0,1.04785663]
[1771074052844,1.30695216,2071.8,2070.9,1.28942663]
[1771074054242,1.31149721,2072.0,2070.9,1.28942663]
[1771074057348,1.31149721,2072.0,2071.5,1.14189656]
[1771074057549,1.31149721,2072.0,2071.5,1.14759213]
[1771074058053,0.00454505,2072.0,2071.5,1.14759213]
[1771074058343,0.00454505,2072.0,2071.7,1.15479102]
[1771074058548,0.00454505,2072.0,2071.6,1.39628102]
[1771074058748,1.30695216,2072.4,2071.6,1.39628102]
[1771074059847,1.31297834,2072.4,2071.6,1.39628102]
[1771074062252,0.00602618,2072.4,2071.6,1.39628102]
[1771074063251,6.18e-06,2072.4,2071.6,1.39628102]
[1771074063455,1.41914232,2072.8,2071.6,1.39628102]
[1771074063755,1.41914232,2072.8,2071.5,0.00569557]
[1771074063756,1.41914232,2072.8,2072.2,1.19294632]
[1771074063948,1.41914232,2072.8,2072.3,1.19294632]
[1771074064549,0.00609762,2072.8,2072.3,1.19294632]
[1771074064751,1.42523994,2072.8,2071.9,1.20215835]
[1771074066350,1.42523994,2072.8,2072.1,1.20373966]
[1771074066751,1.42523994,2072.8,2072.0,0.24144]
[1771074067650,1.42523994,2072.8,2072.0,1.44699605]
[1771074069859,0.00609762,2072.8,2072.0,1.44699605]
[1771074070152,7.62e-06,2072.8,2072.0,1.44699605]
[1771074071348,7.62e-06,2072.8,2072.5,1.22258339]
[1771074071559,1.41914232,2073.2,2072.6,1.22258339]
[1771074071861,1.41914232,2073.5,2072.6,1.46395339]
[1771074072557,1.42357678,2073.5,2072.6,1.46395339]
[1771074073459,1.42357678,2073.5,2072.6,0.24137]
[1771074074658,1.42357678,2073.5,2072.6,1.47089677]
[1771074077157,1.42357678,2073.5,2072.6,0.24137]
[1771074077358,1.42357678,2073.5,2072.6,1.47076456]
[1771074077661,1.42357678,2073.5,2072.6,0.24137]
[1771074078359,1.42357678,2073.5,2072.6,1.48884453]
[1771074082659,1.42357678,2073.5,2073.1,1.2606987]
[1771074082863,0.00443446,2073.5,2073.1,1.266835]
[1771074084262,0.00443446,2073.5,2073.2,1.5016701]
[1771074084462,1.41914232,2073.8,2073.2,1.5016701]
[1771074085662,1.42350896,2073.8,2073.2,1.5016701]
[1771074087156,1.42350896,2073.8,2073.2,0.2413]
[1771074087662,1.42350896,2073.8,2073.1,0.0061363]
[1771074088068,1.42350896,2073.8,2073.2,0.2413]
[1771074089161,1.42350896,2073.8,2073.1,0.0061363]
[1771074089558,1.42350896,2073.8,2072.7,0.24136]
[1771074089757,1.42350896,2073.8,2072.7,1.6183001]
[1771074090758,1.42350896,2073.8,2072.7,1.62385977]
[1771074093774,1.42350896,2073.8,2073.3,1.40598802]
[1771074093967,1.42350896,2073.8,2073.2,1.64728802]
[1771074095466,1.42350896,2073.8,2073.2,0.2413]
[1771074095868,1.42350896,2073.8,2072.8,1.40598802]
[1771074096069,1.42350896,2073.8,2073.0,1.40598802]
[1771074097970,1.42350896,2073.8,2072.9,0.24134]
[1771074098471,1.42350896,2073.8,2072.9,1.64732802]
[1771074103869,1.42350896,2073.8,2072.9,0.24134]
[1771074104375,1.42350896,2073.8,2072.9,1.67680061]
[1771074105770,1.42350896,2073.8,2072.9,0.24134]
[1771074106174,1.42350896,2073.8,2072.9,1.67680061]
[1771074107575,1.42350896,2073.8,2072.9,0.24134]
[1771074109473,1.4573988,2073.6,2072.7,0.00555967]
[1771074110865,1.4573988,2073.6,2072.7,1.43668599]
[1771074113667,1.4573988,2073.6,2072.9,1.35565433]
[1771074115577,1.4573988,2073.6,2072.8,1.59658722]
[1771074117774,1.4573988,2073.5,2072.8,1.59658722]
[1771074118680,1.4573988,2073.5,2072.9,1.37210587]
[1771074118880,1.4573988,2073.5,2072.8,0.24135]
[1771074119077,1.4573988,2073.5,2072.8,1.61345587]
[1771074120276,1.4573988,2073.6,2072.8,1.61345587]
[1771074121481,1.4573988,2073.6,2072.8,0.24135]
[1771074121683,1.44621351,2073.4,2072.3,0.2414]
[1771074121987,1.44621351,2073.4,2072.2,5.4104466]
[1771074122190,1.44621351,2073.2,2072.2,5.4104466]
[1771074122686,1.44621351,2073.2,2072.2,5.41387359]
[1771074122883,1.44621351,2073.2,2072.2,0.00342699]
[1771074123079,1.44621351,2073.0,2071.8,1.64805624]
[1771074123281,1.44621351,2073.0,2071.8,0.24146]
[1771074123581,1.44621351,2072.8,2071.5,1.40974587]
[1771074123784,1.44621351,2072.6,2071.2,1.65127587]
[1771074123991,6.53593147,2072.5,2071.2,1.65127587]
[1771074124199,1.44621351,2072.4,2071.2,1.65725215]
[1771074126285,1.44621351,2072.4,2071.2,1.63059165]
[1771074127585,1.44621351,2072.2,2071.2,0.00597628]
[1771074127792,1.45139167,2072.2,2071.2,0.00597628]
[1771074128287,1.44621351,2072.1,2070.7,1.37823219]
[1771074129198,1.44621351,2072.4,2071.1,1.37798502]
[1771074129492,1.44621351,2072.4,2071.0,5.94234]
[1771074129493,1.44621351,2072.4,2071.5,1.37770812]
[1771074129685,1.44621351,2072.3,2071.5,1.37770812]
[1771074130287,1.45229538,2072.3,2071.5,1.38351115]
[1771074132094,1.45229538,2072.3,2071.5,0.00580303]
[1771074133694,1.45229538,2072.3,2071.1,1.25262963]
[1771074134690,1.45229538,2072.3,2071.1,1.25791381]
[1771074137098,1.45229538,2072.3,2071.1,0.00528418]
[1771074139097,1.45229538,2072.3,2071.1,1.25654493]
[1771074139798,1.45229538,2072.3,2071.2,0.24153]
[1771074139991,1.45229538,2072.3,2071.3,1.25103896]
[1771074141396,1.45229538,2072.3,2071.2,1.49231601]
[1771074141994,1.45229538,2072.3,2071.1,0.00528418]
[1771074143589,1.44621351,2072.1,2070.6,1.49766112]
[1771074143792,1.44621351,2071.9,2070.6,1.49766112]
[1771074144198,1.44621351,2071.7,2070.4,1.24386752]
[1771074144591,1.44621351,2071.5,2070.4,0.00573866]
[1771074144900,1.44621351,2071.3,2070.4,0.00573866]
[1771074145094,40.8,2071.2,2070.0,0.24166]
[1771074145295,1.44621351,2071.1,2069.9,1.24367382]
[1771074145691,1.44621351,2071.1,2069.5,1.24919932]
[1771074145897,1.44621351,2071.1,2069.4,4.24674]
[1771074145898,1.44621351,2071.1,2069.7,1.24919932]
[1771074146102,1.44621351,2071.1,2069.9,1.24919932]
[1771074146399,1.44621351,2071.1,2070.1,1.17864514]
[1771074146602,40.8,2071.2,2070.5,1.17864514]
[1771074146896,1.44621351,2071.4,2070.5,1.17864514]
[1771074147402,1.44621351,2071.3,2070.5,1.17864514]
[1771074147801,1.44621351,2071.3,2070.7,1.1784367]
[1771074148204,40.8,2071.4,2070.7,1.1784367]
[1771074148506,1.44621351,2071.4,2070.7,1.1784367]
[1771074148705,1.44023723,2071.4,2070.9,1.17083077]
[1771074149204,1.44621351,2071.8,2070.9,1.17083077]
[1771074149698,1.44621351,2071.8,2071.1,1.17660375]
[1771074152304,1.44621351,2071.8,2071.0,1.42262609]
[1771074153103,1.44621351,2071.8,2071.0,1.18106609]
[1771074153708,1.44621351,2071.8,2070.5,1.17871092]
[1771074154110,1.44621351,2071.8,2070.7,1.17871092]
[1771074154707,1.44621351,2071.8,2070.1,5.94494]
[1771074154913,1.34787644,2071.5,2069.7,1.18049916]
[1771074155111,1.34787644,2071.2,2069.7,1.18049916]
[1771074155311,1.34787644,2071.0,2069.7,1.18049916]
[1771074155611,1.32287645,2071.0,2069.7,1.18049916]
[1771074157909,1.32287645,2071.0,2069.7,1.21953534]
[1771074158212,1.32287645,2071.0,2069.7,1.21039103]
[1771074160114,1.34787644,2070.9,2069.7,1.21039103]
[1771074160514,1.34787644,2070.9,2069.9,1.19112219]
[1771074160721,40.8,2070.8,2069.9,1.19112219]
[1771074161019,0.0034332,2070.8,2070.1,1.19112219]
[1771074162517,1.328588,2070.8,2070.0,1.43226575]
[1771074163316,0.0034332,2070.8,2070.0,1.43226575]
[1771074163517,1.328588,2070.8,2070.0,1.43226575]
[1771074163816,0.0034332,2070.8,2070.0,1.43226575]
[1771074164022,1.328588,2070.8,2070.0,1.43226575]
[1771074165413,1.328588,2070.8,2069.7,0.00376439]
[1771074166720,1.328588,2070.8,2069.7,1.24626704]
[1771074167527,1.328588,2070.8,2069.7,0.00376439]
[1771074167920,1.3251548,2070.6,2068.9,1.2442449]
[1771074168120,1.3251548,2070.4,2069.3,1.23995194]
[1771074169221,1.3251548,2070.4,2069.3,1.24535323]
[1771074171528,1.3251548,2070.4,2069.3,0.00540129]
[1771074172027,1.3251548,2070.4,2069.3,1.21485963]
[1771074172328,1.3251548,2070.4,2069.5,1.2243247]
[1771074172624,1.3251548,2070.4,2069.4,0.24174]
[1771074173021,1.3251548,2070.4,2069.4,1.46425244]
[1771074173222,1.3251548,2070.4,2069.3,1.22606061]
[1771074175326,1.3251548,2070.4,2069.3,0.00540129]
[1771074175531,1.5668048,2070.2,2068.3,1.22119985]
[1771074175728,1.3251548,2070.0,2068.3,1.22119985]
[1771074176021,1.3251548,2070.0,2067.5,5.95235]
[1771074176022,1.3251548,2069.1,2067.8,1.22119985]
[1771074176222,1.3251548,2069.1,2068.0,1.22790482]
[1771074176422,1.33054381,2069.1,2068.0,1.23264729]
[1771074177025,0.00538901,2069.1,2068.2,1.2261759]
[1771074177228,1.33054381,2069.1,2068.2,1.2243789]
[1771074178332,0.00538901,2069.1,2068.4,1.12930916]
[1771074178825,1.33054381,2069.1,2068.4,1.12930916]
[1771074179030,0.00538901,2069.1,2068.6,1.12930916]
[1771074179232,1.33054381,2069.1,2068.5,1.3711267]
[1771074179536,1.33054381,2069.1,2068.2,1.1276107]
[1771074179933,1.33054381,2069.1,2068.0,4.00974247]
[1771074179934,1.3251548,2068.9,2068.0,5.13735317]
[1771074180533,1.3251548,2068.9,2068.0,0.00474247]
[1771074180931,1.3251548,2068.9,2067.4,5.14917313]
[1771074181127,1.3251548,2068.9,2067.7,1.14334306]
[1771074181835,1.3251548,2068.9,2067.7,1.14696756]
[1771074182432,1.3251548,2068.9,2067.9,1.11588633]
[1771074182839,1.3251548,2068.9,2067.8,0.24193]
[1771074183336,1.31901564,2068.7,2067.7,0.0036245]
[1771074183534,7.27380564,2066.7,2063.8,5.9629]
[1771074183738,1.31901564,2066.1,2064.8,1.13228679]
[1771074183932,1.31901564,2066.1,2065.0,1.13228679]
[1771074184134,1.31901564,2066.1,2065.3,1.36453955]
[1771074184332,1.31901564,2066.8,2065.4,1.12231955]
[1771074184531,5.06e-06,2066.1,2065.8,1.12079386]
[1771074184734,1.31901564,2067.2,2065.8,1.12079386]
[1771074185333,1.31901564,2067.2,2066.0,1.1207755]
[1771074185840,1.32350977,2067.2,2066.0,1.1207755]
[1771074186439,0.00449413,2067.2,2066.2,1.05421037]
[1771074186634,3.90834234,2069.0,2066.1,6.19857]
[1771074186635,1.31901564,2067.9,2066.6,1.04971624]
[1771074186838,1.31901564,2067.9,2066.8,1.04971624]
[1771074187033,42.11901564,2067.8,2066.8,1.04971624]
[1771074187232,1.31901564,2067.8,2066.8,1.04971624]
[1771074187436,1.31901564,2067.8,2066.9,1.0482466]
[1771074187637,1.32281749,2067.8,2066.9,1.05198389]
[1771074187831,1.32281749,2067.8,2066.9,0.00373729]
[1771074188743,1.32281749,2067.8,2066.9,1.02769854]
[1771074190743,1.32281749,2067.8,2066.9,0.00373729]
[1771074192541,1.32281749,2067.8,2066.5,0.24208]
[1771074193649,1.32281749,2067.8,2066.5,0.24725284]
[1771074194244,1.32281749,2067.8,2066.5,1.32883219]
[1771074194838,1.32281749,2067.8,2066.5,0.24725284]
[1771074195037,1.31901564,2067.6,2066.5,0.00517284]
[1771074195242,1.31901564,2067.4,2066.5,0.00517284]
[1771074195441,1.31901564,2067.2,2066.5,0.00517284]
[1771074196246,1.31901564,2067.2,2065.8,1.33542779]
[1771074196949,1.31901564,2067.2,2066.1,1.09193364]
[1771074197144,1.31901564,2067.2,2066.2,1.33404507]
[1771074197345,1.31901564,2067.2,2066.2,0.24212]
[1771074197547,1.31901564,2067.2,2066.1,0.00430112]
[1771074198742,1.31901564,2067.2,2065.3,4.006]
[1771074198743,1.31901564,2066.7,2065.0,0.24225]
[1771074199045,1.31901564,2066.7,2064.7,1.09981417]
[1771074199046,1.31901564,2065.7,2064.7,1.09981417]
[1771074199245,1.31901564,2065.7,2064.8,1.34081395]
[1771074199446,1.31901564,2066.6,2064.8,2.4864108]
[1771074199646,1.32486488,2066.6,2065.1,1.09853395]
[1771074199947,1.31901564,2066.4,2065.3,1.09853395]
[1771074200143,1.31901564,2066.4,2065.6,1.40234349]
[1771074200744,40.8,2066.5,2065.6,1.40234349]
[1771074201047,1.31901564,2067.7,2066.0,1.40101426]
[1771074201544,1.31901564,2067.5,2066.0,1.39971092]
[1771074201740,1.31901564,2067.5,2066.3,1.15757092]
[1771074201946,1.31901564,2067.5,2066.4,1.39966092]
[1771074202648,40.80619225,2067.5,2066.4,1.40551341]
[1771074202850,1.31901564,2067.4,2066.4,1.40551341]
[1771074203350,1.31901564,2067.4,2066.4,1.39278424]
[1771074203850,1.31901564,2067.4,2066.4,1.15069424]
[1771074204344,1.31901564,2067.4,2066.4,0.00585249]
[1771074204648,1.31901564,2067.4,2065.6,1.17058705]
[1771074204846,1.31901564,2067.1,2065.5,0.24219]
[1771074205051,1.31901564,2066.9,2065.5,0.24219]
[1771074205747,1.31901564,2066.9,2065.5,0.24591251]
[1771074205942,1.31901564,2066.9,2065.5,1.42111179]
[1771074208154,40.8,2066.8,2065.5,1.42111179]
[1771074208356,1.31901564,2066.7,2065.5,1.42111179]
[1771074210851,1.31901564,2066.7,2065.5,0.24591251]
[1771074211049,1.31901564,2066.7,2065.5,1.43866358]
[1771074211753,1.31901564,2066.7,2065.8,1.18922719]
[1771074212061,1.31901564,2066.7,2066.0,1.18922719]
[1771074212759,1.28492865,2067.0,2066.1,1.4271761]
[1771074214653,1.28492865,2067.0,2066.1,1.1850461]
[1771074214861,1.28492865,2067.0,2065.6,1.34995782]
[1771074215459,1.28492865,2067.0,2065.8,1.34995782]
[1771074215961,1.28492865,2067.0,2066.0,1.34995782]
[1771074218061,41.25994668,2067.2,2066.0,1.34995782]
[1771074218361,6.59163378,2067.1,2066.0,1.34995782]
[1771074218560,41.25994668,2067.2,2065.6,4.006]
[1771074218561,41.25994668,2067.2,2066.2,1.34995782]
[1771074218960,0.45932644,2067.1,2066.2,1.34995782]
[1771074219259,40.8,2067.2,2066.2,1.34995782]
[1771074219661,40.8,2067.2,2066.4,1.34995782]
[1771074219958,0.00619225,2067.5,2066.6,1.34995782]
[1771074220554,0.00619225,2067.5,2066.8,1.51387403]
[1771074220555,40.8,2067.4,2066.8,1.51387403]
[1771074220755,0.00619225,2067.5,2066.8,1.51387403]
[1771074221157,0.00619225,2067.5,2067.0,1.51387403]
[1771074221355,0.00619225,2067.5,2067.0,1.51834248]
[1771074221560,0.45212384,2068.1,2067.0,1.51834248]
[1771074221754,47.40179504,2068.0,2067.0,1.51834248]
[1771074221956,40.8,2068.0,2067.0,1.51834248]
[1771074222157,41.30250373,2068.0,2067.0,1.51834248]
[1771074222658,41.30670672,2068.0,2067.0,1.51834248]
[1771074223061,0.490201,2067.9,2067.0,1.51834248]
[1771074223860,40.80420299,2068.0,2067.0,1.51834248]
[1771074225663,40.80420299,2068.0,2067.2,1.51387403]
[1771074226361,40.80420299,2068.0,2067.4,1.51387403]
[1771074228469,0.00420299,2068.0,2067.4,1.51387403]
[1771074230362,40.8,2068.3,2067.8,1.51387403]
[1771074230760,0.44376396,2068.2,2067.6,1.51387403]
[1771074230964,40.8,2068.3,2067.6,1.51387403]
[1771074231163,0.44394297,2068.2,2067.6,1.51387403]
[1771074231366,0.4474839,2068.2,2067.6,1.51387403]
[1771074231562,0.4474839,2068.2,2067.2,1.51387403]
[1771074233165,0.4474839,2068.2,2067.0,0.00446845]
[1771074233369,0.4474839,2068.2,2067.0,1.51834248]
[1771074233972,0.4474839,2068.2,2067.0,0.00446845]
[1771074234666,0.4474839,2068.2,2066.6,1.51387403]
[1771074234667,0.44374948,2067.9,2066.6,1.51387403]
[1771074235461,0.44374948,2067.9,2066.8,1.51387403]
[1771074235667,0.44374948,2067.9,2067.0,1.51387403]
[1771074236068,0.00354093,2068.2,2067.4,1.51387403]
[1771074236572,0.48271589,2068.2,2067.4,1.51387403]
[1771074236771,0.48271589,2068.2,2067.3,0.24199]
[1771074237367,0.48271589,2068.2,2067.3,1.75586403]
[1771074238272,0.48271589,2068.2,2067.3,1.51387403]
[1771074239176,0.48271589,2068.2,2067.1,1.51387403]
[1771074239877,0.5752025,2068.0,2066.8,1.51850718]
[1771074240069,0.5752025,2067.8,2066.8,1.51850718]
[1771074240866,0.5752025,2067.8,2066.8,0.00463315]
[1771074242376,0.55286648,2067.6,2066.8,0.00463315]
[1771074242580,0.55286648,2067.6,2066.4,1.49175846]
[1771074243378,0.5454556,2067.5,2066.2,1.49175846]
[1771074243678,40.8,2067.7,2066.2,1.49175846]
[1771074243679,0.5454556,2067.3,2066.2,0.00626006]
[1771074243880,0.5454556,2067.1,2066.2,0.00626006]
[1771074244075,0.5454556,2067.1,2066.2,1.49801852]
[1771074244683,0.5454556,2067.1,2066.2,0.00626006]
[1771074245179,0.5454556,2067.1,2066.2,1.49801852]
[1771074245775,14.997,2067.2,2066.4,1.49175846]
[1771074246075,0.54506873,2067.1,2066.2,0.00626006]
[1771074246275,0.54506873,2067.1,2066.2,1.49801852]
[1771074251879,0.5624678,2067.3,2066.2,1.49801852]
[1771074252478,14.961,2067.4,2066.2,1.74013852]
[1771074252878,15.56803187,2067.4,2066.2,1.74013852]
[1771074253783,0.60392689,2067.3,2066.2,1.74013852]
[1771074254083,14.961,2067.4,2066.2,1.74013852]
[1771074254579,15.51766579,2067.4,2066.2,1.74013852]
[1771074254883,0.55666579,2067.3,2066.2,1.74013852]
[1771074256185,0.55361973,2067.6,2066.2,1.74013852]
[1771074261291,0.53992325,2067.4,2066.2,1.74013852]
[1771074263288,6.60040947,2067.3,2066.2,1.74013852]
[1771074263490,0.5711612,2067.6,2066.2,1.74013852]
[1771074263685,0.5711612,2067.4,2066.2,1.74013852]
[1771074269298,0.38008128,2067.2,2066.2,1.74013852]
[1771074270001,0.38008128,2067.2,2066.2,1.49801852]
[1771074270603,0.37411431,2067.0,2066.2,1.49801852]
[1771074271603,0.37411431,2067.0,2066.2,0.00626006]
[1771074272201,0.36101589,2066.8,2065.7,1.38846924]
[1771074272598,0.35733191,2066.6,2065.7,1.38846924]
[1771074273304,0.00461152,2066.6,2065.7,1.39193354]
[1771074274111,0.00461152,2066.6,2065.9,1.38846924]
[1771074274810,40.8,2066.7,2065.9,1.38846924]
[1771074275313,0.26143886,2067.1,2066.1,1.38846924]
[1771074275907,0.26608321,2067.1,2066.1,1.38846924]
[1771074276108,40.8,2067.0,2066.1,1.38846924]
[1771074276501,42.17465872,2067.0,2066.1,1.38846924]
[1771074277514,1.37465872,2066.9,2066.1,1.38846924]
[1771074277814,40.8,2067.0,2066.3,1.38846924]
[1771074278314,0.00464435,2067.1,2066.3,1.38846924]
[1771074278709,1.37930307,2067.1,2066.3,1.38846924]
[1771074278913,1.37465872,2066.9,2066.3,1.38846924]
[1771074282211,1.37465872,2066.9,2065.8,1.44707619]
[1771074283518,1.37465872,2066.9,2066.0,1.44707619]
[1771074283914,1.37465872,2066.9,2065.8,1.44707619]
[1771074284114,14.87,2067.0,2065.8,1.44707619]
[1771074284115,1.43893728,2066.7,2065.8,1.44707619]
[1771074284415,40.8,2066.6,2065.8,1.44707619]
[1771074284616,1.43893728,2066.5,2065.8,1.44707619]
[1771074288813,40.8,2066.6,2065.8,1.44707619]
[1771074289018,1.43893728,2066.9,2066.0,1.44707619]
[1771074289620,42.23893728,2066.8,2066.0,1.44707619]
[1771074290116,1.43893728,2066.7,2066.0,1.44707619]
[1771074292218,40.8,2066.8,2066.0,1.44707619]
[1771074292619,1.43893728,2066.7,2066.0,1.44707619]
[1771074293623,40.8,2066.8,2066.0,1.44707619]
[1771074294121,40.8,2066.8,2065.8,1.44707619]
[1771074294122,1.43893728,2066.7,2065.8,1.44707619]
[1771074298124,1.43893728,2066.7,2066.0,1.44707619]
[1771074299323,1.43893728,2066.7,2065.8,1.68923619]
[1771074301025,1.43893728,2066.7,2065.8,1.44707619]
[1771074304131,1.43893728,2066.7,2065.7,1.46814132]
[1771074307130,1.33694543,2066.7,2065.7,1.46814132]
[1771074308134,15.00764435,2067.1,2066.3,1.46467702]
[1771074308326,0.00464435,2067.1,2066.5,1.46467702]
[1771074308628,40.80464435,2067.1,2066.5,1.46467702]
[1771074308828,1.33694543,2067.0,2066.5,1.46467702]
[1771074309133,1.33694543,2067.0,2066.3,1.46467702]
[1771074309933,40.80464435,2067.1,2066.3,1.46467702]
[1771074310230,0.00464435,2067.1,2066.3,1.70677702]
[1771074310530,1.33694543,2067.9,2066.3,1.70677702]
[1771074310726,1.33694543,2067.7,2066.3,1.70677702]
[1771074310923,40.8,2067.8,2066.9,1.46467702]
[1771074311127,1.33694543,2068.1,2066.9,1.46467702]
[1771074311329,4.009,2068.2,2067.1,1.46467702]
[1771074311528,0.00622491,2068.1,2067.1,1.46467702]
[1771074311833,40.80622491,2068.1,2067.1,1.46467702]
[1771074312828,42.14317034,2068.1,2067.3,1.46467702]
[1771074313031,1.33694543,2068.0,2067.3,1.46823778]
[1771074313230,40.80622491,2068.1,2067.3,1.46823778]
[1771074313728,0.00622491,2068.1,2067.3,1.46823778]
[1771074314232,1.33694543,2068.5,2067.5,1.46467702]
[1771074314432,1.33694543,2068.9,2067.5,1.46467702]
[1771074314828,1.33694543,2068.9,2067.7,1.46467702]
[1771074315430,1.34273508,2068.9,2067.7,1.46467702]
[1771074316635,1.34273508,2068.9,2067.8,0.24193]